bitfinex/quotes_SOLUSD_20250226
["timestamp","ask_amount","ask_price","bid_price","bid_amount"]
[1740584321521,3.5842,140.46,140.43,219.163]
[1740584321706,2.0,140.45,140.43,219.163]
[1740584322433,1.0,140.44,140.43,219.163]
[1740584322635,2.0,140.44,140.43,219.163]
[1740584323517,3.6527,140.44,140.43,0.063]
[1740584323718,10.0206,140.44,140.43,0.063]
[1740584324129,1.0,140.42,140.41,0.063]
[1740584324443,2.0,140.42,140.41,0.063]
[1740584329326,1.0,140.34,140.32,144.423]
[1740584329517,1.0,140.33,140.32,0.063]
[1740584330137,1.0,140.36,140.32,238.38129514]
[1740584330325,1.0,140.38,140.35,0.42648471]
[1740584330632,1.0,140.38,140.35,138.12190736]
[1740584330808,2.0,140.38,140.35,138.12190736]
[1740584331009,1.0,140.4,140.35,138.12190736]
[1740584331229,1.0,140.4,140.36,8.16]
[1740584331405,1.0,140.41,140.37,20.57140577]
[1740584331610,2.0,140.4,140.37,221.02175691]
[1740584331808,1.0,140.39,140.37,219.1]
[1740584332326,1.0,140.38,140.37,219.1]
[1740584332528,1.0,140.38,140.36,144.36]
[1740584333144,2.0,140.38,140.36,144.36]
[1740584333336,1.0,140.37,140.36,8.16]
[1740584335627,1.0,140.37,140.36,91.06]
[1740584335948,2.0,140.37,140.36,91.06]
[1740584336434,1.0,140.35,140.34,82.9]
[1740584337626,2.0,140.35,140.34,82.9]
[1740584340043,2.0,140.33,140.32,82.963]
[1740584340353,2.0,140.33,140.32,0.063]
[1740584341451,2.0,140.33,140.32,82.963]
[1740584342024,2.0,140.33,140.32,0.063]
[1740584342935,75.56591496,140.32,140.31,0.063]
[1740584343250,75.56591496,140.32,140.3,0.063]
[1740584343251,2.0,140.31,140.3,0.063]
[1740584343622,21.64964886,140.29,140.28,0.063]
[1740584343847,95.21556382,140.29,140.28,0.063]
[1740584344228,2.0,140.27,140.26,0.063]
[1740584344467,2.0,140.24,140.21,0.063]
[1740584347431,1.0,140.2,140.19,0.063]
[1740584347634,2.0,140.2,140.19,0.063]
[1740584348255,1.0,140.2,140.19,0.063]
[1740584348836,2.0,140.2,140.19,0.063]
[1740584349039,2.0,140.19,140.18,0.063]
[1740584350742,1.0,140.19,140.18,0.063]
[1740584350966,1.0,140.2,140.18,0.063]
[1740584352358,1.0,140.19,140.18,0.063]
[1740584352656,2.0,140.19,140.18,0.063]
[1740584352956,1.0,140.19,140.18,0.063]
[1740584353136,1.0,140.2,140.18,0.063]
[1740584353332,1.0,140.21,140.18,1.8447451]
[1740584353550,1.0,140.21,140.18,10.0047451]
[1740584354462,1.0,140.22,140.18,10.0047451]
[1740584354761,1.0,140.21,140.18,228.82042196]
[1740584354958,1.0,140.2,140.18,227.323]
[1740584355161,1.0,140.21,140.2,20.0]
[1740584355373,1.0,140.2,140.18,227.323]
[1740584356067,1.0,140.2,140.18,91.123]
[1740584356363,1.0,140.19,140.18,92.62039021]
[1740584356568,2.0,140.19,140.18,91.123]
[1740584357252,1.0,140.19,140.18,91.123]
[1740584357450,1.0,140.2,140.18,92.62069087]
[1740584357760,1.0,140.21,140.18,235.95419087]
[1740584357960,1.0,140.22,140.19,0.42648471]
[1740584358139,1.0,140.22,140.2,1.49703562]
[1740584358349,1.0,140.23,140.21,0.42648471]
[1740584358603,1.0,140.24,140.21,0.42648471]
[1740584358868,1.0,140.27,140.22,1.49688129]
[1740584358869,1.0,140.25,140.22,1.49688129]
[1740584359058,1.0,140.27,140.24,0.42648471]
[1740584359379,1.0,140.25,140.24,227.26]
[1740584360753,2.0,140.25,140.24,8.16]
[1740584361339,1.0,140.25,140.24,8.16]
[1740584362066,1.0,140.26,140.24,8.16]
[1740584362251,1.0,140.28,140.24,227.68648471]
[1740584362566,1.0,140.32,140.28,20.42648471]
[1740584362744,1.0,140.31,140.28,240.59613797]
[1740584363070,1.0,140.29,140.28,82.9]
[1740584363766,2.0,140.29,140.28,82.9]
[1740584363979,1.0,140.24,140.21,219.1]
[1740584364164,1.0,140.24,140.22,8.16]
[1740584364368,1.0,140.23,140.22,8.16]
[1740584365053,1.0,140.23,140.22,91.06]
[1740584365243,2.0,140.23,140.22,91.06]
[1740584365445,1.0,140.23,140.22,91.06]
[1740584365666,1.0,140.25,140.22,91.06]
[1740584365943,0.063,140.27,140.24,0.14216157]
[1740584366252,0.063,140.27,140.25,1.9229403]
[1740584366450,1.063,140.27,140.25,1.49645559]
[1740584366760,1.0,140.25,140.24,219.1]
[1740584366961,1.0,140.25,140.22,91.06]
[1740584367469,1.0,140.25,140.22,92.55680806]
[1740584367643,1.0,140.25,140.22,91.06]
[1740584367845,1.0,140.23,140.22,91.06]
[1740584368057,1.0,140.24,140.22,91.48648471]
[1740584368571,1.0,140.23,140.22,91.06]
[1740584368953,1.0,140.24,140.22,91.06]
[1740584369451,1.0,140.23,140.22,91.06]
[1740584369976,2.0,140.23,140.22,91.06]
[1740584370154,2.0,140.23,140.22,82.9]
[1740584370363,2.0,140.23,140.19,136.2]
[1740584370364,1.0,140.2,140.19,91.06]
[1740584371650,1.0,140.2,140.19,82.9]
[1740584372867,2.0,140.2,140.19,82.9]
[1740584373174,1.0,140.2,140.19,82.9]
[1740584373365,2.0,140.2,140.19,82.9]
[1740584374065,1.0,140.2,140.19,82.9]
[1740584376383,1.0,140.2,140.19,82.93]
[1740584376384,7.28766961,140.2,140.19,82.93]
[1740584377058,6.28766961,140.2,140.19,82.93]
[1740584377577,7.28766961,140.2,140.19,82.93]
[1740584377885,2.0,140.2,140.19,82.93]
[1740584378557,2.0,140.2,140.19,0.03]
[1740584378757,1.0,140.2,140.19,0.03]
[1740584379374,2.0,140.2,140.19,0.03]
[1740584381583,1.0,140.2,140.19,0.03]
[1740584382380,1.0,140.2,140.19,82.93]
[1740584382563,2.0,140.2,140.19,82.93]
[1740584383076,1.0,140.2,140.19,82.93]
[1740584383298,2.0,140.2,140.19,82.93]
[1740584384792,1.0,140.2,140.19,82.93]
[1740584385377,1.0,140.2,140.19,83.35648471]
[1740584386860,1.0,140.21,140.2,0.42648471]
[1740584388079,2.0,140.21,140.2,0.42648471]
[1740584388386,1.0,140.2,140.19,0.45648471]
[1740584388885,1.063,140.23,140.21,0.28432314]
[1740584390493,1.0,140.22,140.21,219.38432314]
[1740584390673,1.0,140.22,140.21,219.52648471]
[1740584390997,0.063,140.23,140.22,19.21829514]
[1740584391194,0.063,140.23,140.22,20.71511739]
[1740584391898,1.063,140.23,140.21,219.1]
[1740584392191,2.063,140.23,140.21,219.1]
[1740584392391,1.0,140.22,140.21,219.52648471]
[1740584392562,0.063,140.23,140.22,19.21829514]
[1740584392764,0.063,140.23,140.22,42.15486872]
[1740584393589,0.063,140.23,140.22,261.25486872]
[1740584393790,0.063,140.23,140.22,266.88989514]
[1740584395090,0.063,140.23,140.22,238.033972]
[1740584395286,1.0,140.22,140.19,226.2629]
[1740584395476,1.0,140.22,140.2,1.49713582]
[1740584395781,1.0,140.22,140.21,20.42648471]
[1740584395999,1.0,140.22,140.21,20.0]
[1740584396474,1.0,140.22,140.21,20.42648471]
[1740584398663,1.0,140.22,140.21,20.0]
[1740584399065,1.0,140.22,140.21,20.42648471]
[1740584400083,1.063,140.22,140.21,20.42648471]
[1740584400566,1.0,140.21,140.2,136.2]
[1740584400792,1.063,140.22,140.21,0.42648471]
[1740584401176,0.063,140.22,140.21,19.21829514]
[1740584401598,5.39578947,140.22,140.21,20.7151361]
[1740584402073,5.39578947,140.22,140.21,261.2951361]
[1740584402275,5.39578947,140.22,140.21,266.38159514]
[1740584402592,5.39578947,140.22,140.21,238.17613357]
[1740584402895,2.063,140.22,140.21,82.9]
[1740584403200,2.0,140.2,140.19,82.93]
[1740584403890,7.395948,140.22,140.2,0.28432314]
[1740584404201,1.0,140.2,140.19,83.35648471]
[1740584404488,0.063,140.22,140.21,0.14216157]
[1740584404666,0.063,140.22,140.21,2.06554759]
[1740584404866,0.063,140.22,140.21,22.06554759]
[1740584405082,0.063,140.22,140.21,21.49690131]
[1740584405083,1.063,140.22,140.21,21.49690131]
[1740584405295,0.063,140.22,140.21,22.06554759]
[1740584405598,0.063,140.22,140.21,40.71519645]
[1740584405780,1.063,140.22,140.21,83.32648471]
[1740584406373,0.063,140.22,140.21,109.25039514]
[1740584406590,0.063,140.22,140.21,238.31829514]
[1740584406798,0.063,140.22,140.21,245.45039514]
[1740584408269,0.063,140.22,140.21,109.25039514]
[1740584408480,0.063,140.22,140.21,239.81512492]
[1740584408683,0.063,140.22,140.21,238.31829514]
[1740584408883,1.063,140.22,140.21,83.32648471]
[1740584409393,2.063,140.22,140.21,83.04216157]
[1740584409594,2.063,140.22,140.21,83.32648471]
[1740584409792,0.063,140.22,140.21,102.11829514]
[1740584409975,0.063,140.22,140.21,109.25039514]
[1740584410177,1.063,140.22,140.21,83.18432314]
[1740584410583,1.063,140.22,140.21,83.32648471]
[1740584411101,2.063,140.22,140.21,82.9]
[1740584411398,2.063,140.22,140.19,219.13]
[1740584411399,2.0,140.2,140.19,219.13]
[1740584412175,1.0,140.2,140.19,219.55648471]
[1740584413185,1.0,140.21,140.2,0.42648471]
[1740584413522,1.0,140.2,140.19,219.13]
[1740584413714,2.0,140.2,140.19,219.13]
[1740584414286,2.0,140.2,140.19,82.93]
[1740584416112,2.0,140.2,140.17,0.063]
[1740584416113,3.5162,140.2,140.17,0.063]
[1740584416292,8.5175,140.18,140.17,0.063]
[1740584425623,2.0,140.18,140.17,0.063]
[1740584430731,7.32569415,140.18,140.17,0.063]
[1740584431224,7.32569415,140.18,140.17,0.0012]
[1740584435524,7.38869415,140.18,140.17,0.0012]
[1740584436050,5.38869415,140.18,140.17,219.66984628]
[1740584436219,5.38869415,140.18,140.17,238.31949514]
[1740584436540,5.38869415,140.18,140.17,259.79949514]
[1740584436738,9.415e-05,140.18,140.17,260.54379514]
[1740584437046,0.063,140.2,140.19,47.09269514]
[1740584437246,0.063,140.2,140.19,246.20943876]
[1740584437457,2.063,140.2,140.19,82.9]
[1740584439245,2.0,140.18,140.17,0.0012]
[1740584444365,1.0,140.18,140.17,0.42768471]
[1740584444655,1.0,140.18,140.17,84.82523784]
[1740584444955,0.063,140.2,140.19,20.42648471]
[1740584445127,0.063,140.2,140.19,258.31829514]
[1740584445651,0.063,140.2,140.19,265.45139514]
[1740584447560,0.063,140.2,140.19,258.31829514]
[1740584448862,0.063,140.2,140.19,265.45139514]
[1740584450430,0.063,140.2,140.19,129.25139514]
[1740584450739,0.063,140.22,140.2,19.21829514]
[1740584450935,0.063,140.22,140.21,2.06546553]
[1740584451656,0.063,140.22,140.21,27.84721439]
[1740584452461,0.063,140.22,140.21,246.94721439]
[1740584452660,0.063,140.27,140.26,19.21829514]
[1740584452860,0.063,140.27,140.26,238.31829514]
[1740584453574,0.063,140.27,140.26,219.66864628]
[1740584453876,1.063,140.27,140.26,219.52648471]
[1740584454350,0.063,140.27,140.26,83.32648471]
[1740584454555,0.063,140.27,140.26,102.11829514]
[1740584455765,0.67715572,140.3,140.28,0.14216157]
[1740584456085,0.67715572,140.3,140.29,0.42648471]
[1740584456654,1.67715572,140.3,140.29,0.42648471]
[1740584456956,0.67715572,140.3,140.29,0.42648471]
[1740584457870,0.67715572,140.32,140.3,0.14216157]
[1740584458238,0.67715572,140.32,140.31,0.42648471]
[1740584458565,1.67715572,140.32,140.31,83.32648471]
[1740584458772,0.67715572,140.32,140.31,83.32648471]
[1740584459144,1.67715572,140.32,140.31,83.32648471]
[1740584459563,0.67715572,140.34,140.31,83.32648471]
[1740584459748,1.67715572,140.33,140.31,84.82249969]
[1740584460674,1.67715572,140.32,140.31,82.9]
[1740584460870,1.67715572,140.28,140.27,219.1]
[1740584461194,1.67715572,140.28,140.27,82.9]
[1740584462072,6.6251,140.32,140.23,219.1]
[1740584462073,1.67715572,140.25,140.23,219.1]
[1740584462385,1.67715572,140.25,140.24,0.42648471]
[1740584462572,1.67715572,140.25,140.23,219.1]
[1740584462779,1.67715572,140.24,140.23,82.9]
[1740584463285,1.67715572,140.22,140.21,219.1]
[1740584463478,1.67715572,140.22,140.21,82.9]
[1740584463862,0.67715572,140.19,140.17,219.1012]
[1740584464084,1.67715572,140.2,140.17,219.1012]
[1740584464285,1.67715572,140.2,140.18,0.42648471]
[1740584464884,0.67715572,140.2,140.18,0.42648471]
[1740584465058,1.67715572,140.2,140.19,20.14216157]
[1740584465387,1.67715572,140.25,140.23,0.42648471]
[1740584465696,1.67715572,140.26,140.23,83.32648471]
[1740584465875,0.67715572,140.25,140.23,83.32648471]
[1740584466083,1.0,140.25,140.23,83.32648471]
[1740584466374,1.67715572,140.25,140.23,83.32648471]
[1740584466579,1.67715572,140.24,140.23,83.32648471]
[1740584466795,1.0,140.26,140.24,0.14216157]
[1740584467093,0.67715572,140.26,140.24,0.14216157]
[1740584467259,1.67715572,140.25,140.23,83.32648471]
[1740584467764,1.0,140.25,140.23,83.32648471]
[1740584467966,1.67715572,140.25,140.23,83.32648471]
[1740584468167,0.67715572,140.24,140.23,83.32648471]
[1740584468486,1.0,140.26,140.24,18.79181043]
[1740584468787,1.0,140.29,140.27,20.42648471]
[1740584468995,1.67715572,140.28,140.27,82.9]
[1740584469174,1.67715572,140.26,140.25,82.9]
[1740584469494,1.67715572,140.23,140.22,82.9]
[1740584471997,1.67715572,140.18,140.17,82.9012]
[1740584472499,1.67715572,140.18,140.17,83.32768471]
[1740584472680,0.67715572,140.18,140.17,82.9012]
[1740584472877,1.67715572,140.18,140.17,82.9012]
[1740584475261,0.67715572,140.2,140.17,219.1012]
[1740584475466,0.67715572,140.22,140.21,0.42648471]
[1740584475666,1.67715572,140.22,140.21,83.32648471]
[1740584477099,0.67715572,140.24,140.22,0.14216157]
[1740584477298,1.0,140.25,140.24,0.42648471]
[1740584477299,0.67715572,140.25,140.24,0.42648471]
[1740584477599,1.67715572,140.25,140.24,82.9]
[1740584477978,0.67715572,140.22,140.18,219.1]
[1740584478171,1.67715572,140.21,140.19,1.92383838]
[1740584478375,1.67715572,140.21,140.2,20.28432314]
[1740584478665,0.67715572,140.25,140.23,0.14216157]
[1740584478865,1.67715572,140.25,140.24,0.42648471]
[1740584479168,1.67715572,140.28,140.25,0.14216157]
[1740584479408,1.67715572,140.27,140.26,0.42648471]
[1740584479696,0.67715572,140.3,140.27,0.14216157]
[1740584479874,0.67715572,140.3,140.27,239.38820247]
[1740584480068,1.0,140.29,140.28,1.63849719]
[1740584480700,1.67715572,140.29,140.28,83.32648471]
[1740584481176,1.67715572,140.29,140.28,82.9]
[1740584481498,1.67715572,140.29,140.25,0.56864628]
[1740584481700,1.67715572,140.26,140.25,83.32648471]
[1740584482774,1.67715572,140.26,140.19,225.6243]
[1740584483080,0.67715572,140.21,140.19,219.1]
[1740584483278,1.67715572,140.21,140.19,219.1]
[1740584483488,1.67715572,140.21,140.2,0.42648471]
[1740584484200,0.67715572,140.2,140.19,219.1]
[1740584484676,1.67715572,140.2,140.19,83.32648471]
[1740584484880,0.67715572,140.2,140.19,83.32648471]
[1740584485084,1.67715572,140.21,140.2,0.42648471]
[1740584485585,0.67715572,140.21,140.2,0.42648471]
[1740584485781,1.67715572,140.22,140.2,0.42648471]
[1740584485981,1.0,140.21,140.2,0.56864628]
[1740584486500,1.67715572,140.22,140.2,0.56864628]
[1740584486801,1.0,140.21,140.2,0.56864628]
[1740584486985,1.0,140.21,140.2,0.42648471]
[1740584487166,0.67715572,140.22,140.19,82.9]
[1740584487504,0.67715572,140.22,140.21,0.14216157]
[1740584487700,1.67715572,140.22,140.21,0.14216157]
[1740584488614,1.67715572,140.22,140.21,83.32648471]
[1740584489602,1.67715572,140.24,140.22,0.28432314]
[1740584489810,1.0,140.25,140.24,0.42648471]
[1740584489981,1.67715572,140.25,140.24,20.42648471]
[1740584490398,1.0,140.25,140.24,20.42648471]
[1740584490605,1.67715572,140.25,140.24,20.42648471]
[1740584492903,1.67715572,140.25,140.22,219.1]
[1740584493076,1.67715572,140.23,140.22,219.1]
[1740584493275,1.67715572,140.23,140.22,82.9]
[1740584494879,1.0,140.23,140.22,83.35648471]
[1740584495186,1.67715572,140.24,140.22,82.93]
[1740584495387,1.67715572,140.23,140.22,82.93]
[1740584495907,0.67715572,140.24,140.23,0.42648471]
[1740584496080,1.67715572,140.24,140.23,0.42648471]
[1740584496614,1.67715572,140.23,140.22,82.93]
[1740584497711,1.0,140.28,140.26,0.56864628]
[1740584497894,0.67715572,140.28,140.26,219.66864628]
[1740584498095,1.74015572,140.3,140.26,219.66864628]
[1740584498300,0.063,140.3,140.29,20.42648471]
[1740584498626,0.063,140.3,140.29,103.46864628]
[1740584498918,0.74015572,140.3,140.29,102.9]
[1740584499128,1.74015572,140.3,140.29,82.9]
[1740584500017,0.67715572,140.26,140.25,20.42648471]
[1740584500325,0.67715572,140.26,140.25,103.18432314]
[1740584500629,1.67715572,140.27,140.25,103.18432314]
[1740584500915,1.67715572,140.27,140.26,0.42648471]
[1740584501216,1.67715572,140.29,140.28,20.42648471]
[1740584501422,1.67715572,140.29,140.28,103.32648471]
[1740584501831,0.063,140.3,140.29,0.56864628]
[1740584501990,0.063,140.3,140.29,7.69664628]
[1740584502191,0.063,140.3,140.29,9.19274859]
[1740584504696,0.063,140.3,140.29,49.32239745]
[1740584504896,0.063,140.3,140.29,27.84239745]
[1740584505202,0.74015572,140.3,140.29,1.63826388]
[1740584505402,0.74015572,140.3,140.29,0.14216157]
[1740584505714,0.063,140.3,140.29,20.288145]
[1740584505907,0.063,140.3,140.29,20.71462971]
[1740584506522,0.063,140.3,140.29,268.42262971]
[1740584506732,0.063,140.3,140.29,266.92629514]
[1740584507297,0.063,140.3,140.29,267.24913942]
[1740584507494,0.063,140.3,140.29,266.92629514]
[1740584507720,0.063,140.3,140.29,267.24913942]
[1740584509827,0.063,140.3,140.29,266.92629514]
[1740584511033,0.063,140.3,140.29,245.44629514]
[1740584511321,1.74015572,140.3,140.29,219.1]
[1740584511830,1.74015572,140.3,140.29,219.66864628]
[1740584512339,1.74015572,140.3,140.29,219.1]
[1740584512631,1.74015572,140.3,140.29,219.66864628]
[1740584512832,1.74015572,140.3,140.29,219.38432314]
[1740584513008,0.063,140.3,140.29,219.38432314]
[1740584513338,1.74015572,140.3,140.29,219.66864628]
[1740584515227,1.74015572,140.3,140.29,82.9]
[1740584515812,1.74015572,140.3,140.29,83.32648471]
[1740584516217,1.74015572,140.3,140.29,82.9]
[1740584517004,0.67715572,140.28,140.27,82.9]
[1740584517534,1.67715572,140.28,140.27,82.9]
[1740584518398,1.67715572,140.29,140.28,0.42648471]
[1740584518603,1.67715572,140.29,140.28,0.03]
[1740584521320,1.67715572,140.29,140.24,219.13]
[1740584521321,6.2537,140.28,140.24,82.93]
[1740584521721,1.67715572,140.25,140.24,82.93]
[1740584521908,1.67715572,140.25,140.24,83.35648471]
[1740584522112,1.67715572,140.29,140.28,20.0]
[1740584522327,1.74015572,140.3,140.29,0.42648471]
[1740584522938,1.063,140.3,140.29,238.31829514]
[1740584523106,0.063,140.3,140.29,238.31829514]
[1740584523832,0.063,140.3,140.29,245.44629514]
[1740584524136,0.063,140.3,140.29,131.04913942]
[1740584524340,0.063,140.3,140.29,268.74498265]
[1740584524536,0.063,140.3,140.29,267.24913942]
[1740584524739,0.063,140.34,140.33,42.04864628]
[1740584524912,0.063,140.34,140.33,281.29384018]
[1740584525114,0.063,140.34,140.33,279.79829514]
[1740584525553,0.063,140.34,140.33,258.31829514]
[1740584525922,0.74015572,140.34,140.33,239.52648471]
[1740584526124,1.67715572,140.32,140.31,136.2]
[1740584527539,1.67715572,140.3,140.29,82.9]
[1740584527714,1.67715572,140.26,140.24,219.13]
[1740584527916,1.67715572,140.26,140.25,0.42648471]
[1740584528240,1.67715572,140.26,140.25,83.32648471]
[1740584528621,1.67715572,140.26,140.25,82.9]
[1740584529045,0.67715572,140.31,140.29,0.56864628]
[1740584529214,0.67715572,140.31,140.29,221.16483898]
[1740584529415,0.67715572,140.31,140.29,219.66864628]
[1740584530243,0.063,140.34,140.33,39.21829514]
[1740584530417,0.063,140.34,140.33,281.29395174]
[1740584530738,0.063,140.34,140.33,279.79829514]
[1740584531536,0.063,140.34,140.33,287.24713942]
[1740584532129,0.063,140.34,140.33,290.24096118]
[1740584533035,0.063,140.34,140.33,292.29331023]
[1740584533937,0.063,140.34,140.33,295.57660808]
[1740584534319,0.063,140.34,140.33,263.08529576]
[1740584534625,0.74015572,140.34,140.33,88.2356469]
[1740584534825,1.74015572,140.34,140.33,88.2356469]
[1740584535033,3.30785572,140.34,140.33,5.3356469]
[1740584535227,3.30785572,140.34,140.33,3.6690469]
[1740584535424,1.67715572,140.3,140.29,219.1]
[1740584535643,1.67715572,140.3,140.29,82.9]
[1740584537138,0.67715572,140.31,140.3,0.56864628]
[1740584537340,1.67715572,140.32,140.31,20.42648471]
[1740584537547,0.67715572,140.3,140.29,219.1]
[1740584537822,1.67715572,140.3,140.29,219.52648471]
[1740584538684,1.67715572,140.3,140.29,82.9]
[1740584538854,0.67715572,140.25,140.24,219.13]
[1740584539057,0.67715572,140.25,140.24,219.69864628]
[1740584539559,0.67715572,140.25,140.24,82.93]
[1740584539738,1.67715572,140.25,140.24,82.93]
[1740584539924,1.67715572,140.25,140.24,83.35648471]
[1740584540630,1.67715572,140.25,140.24,82.93]
[1740584541024,1.67715572,140.27,140.26,20.0]
[1740584541221,1.0,140.26,140.24,82.93]
[1740584541425,1.67715572,140.25,140.24,82.93]
[1740584541957,0.67715572,140.27,140.25,19.21829514]
[1740584542127,1.67715572,140.28,140.25,19.21829514]
[1740584542461,1.67715572,140.28,140.27,20.42648471]
[1740584542670,1.67715572,140.26,140.25,82.9]
[1740584542852,1.67715572,140.31,140.26,0.56864628]
[1740584543053,1.0,140.33,140.32,0.56864628]
[1740584543366,1.0,140.33,140.32,221.16440677]
[1740584543565,1.0,140.33,140.32,219.66864628]
[1740584543970,1.67715572,140.33,140.32,219.66864628]
[1740584544141,1.063,140.34,140.32,219.66864628]
[1740584544342,0.67715572,140.33,140.32,82.9]
[1740584544553,1.67715572,140.33,140.32,82.9]
[1740584544951,1.0,140.33,140.32,83.32648471]
[1740584545168,1.67715572,140.33,140.32,83.32648471]
[1740584545473,0.063,140.34,140.3,82.9]
[1740584545474,1.67715572,140.31,140.3,82.9]
[1740584545768,1.67715572,140.27,140.26,82.9]
[1740584545962,1.67715572,140.27,140.26,83.32648471]
[1740584546185,1.67715572,140.27,140.26,82.9]
[1740584546377,1.0,140.31,140.28,0.56864628]
[1740584546537,1.67715572,140.32,140.3,0.14216157]
[1740584546865,1.67715572,140.31,140.3,0.14216157]
[1740584547073,1.0,140.31,140.3,19.21829514]
[1740584547250,1.67715572,140.31,140.3,20.42648471]
[1740584547462,1.0,140.29,140.28,219.66864628]
[1740584547771,1.67715572,140.29,140.28,219.66864628]
[1740584547946,1.0,140.29,140.28,219.52648471]
[1740584548137,0.67715572,140.3,140.29,0.42648471]
[1740584548345,1.67715572,140.3,140.29,0.56864628]
[1740584549158,1.67715572,140.28,140.27,20.0]
[1740584549472,1.67715572,140.28,140.27,103.32648471]
[1740584549843,1.67715572,140.28,140.27,103.04216157]
[1740584550062,1.67715572,140.28,140.27,103.18432314]
[1740584550384,1.67715572,140.28,140.27,103.46864628]
[1740584550782,1.67715572,140.28,140.27,103.32648471]
[1740584551174,1.67715572,140.28,140.27,103.18432314]
[1740584551575,1.67715572,140.28,140.27,82.9]
[1740584551773,1.67715572,140.25,140.24,82.93]
[1740584551991,1.67715572,140.25,140.24,83.35648471]
[1740584552286,1.67715572,140.25,140.24,82.93]
[1740584552799,1.67715572,140.25,140.24,83.35648471]
[1740584553088,1.67715572,140.25,140.24,83.21432314]
[1740584553492,1.67715572,140.27,140.25,0.14216157]
[1740584553791,1.67715572,140.27,140.25,0.56864628]
[1740584553962,1.67715572,140.27,140.26,20.14216157]
[1740584554159,1.0,140.27,140.26,239.66864628]
[1740584554384,1.67715572,140.28,140.27,0.56864628]
[1740584554572,1.67715572,140.3,140.29,20.14216157]
[1740584554772,1.67715572,140.3,140.29,239.24216157]
[1740584555467,1.0,140.3,140.29,258.31829514]
[1740584555673,0.67715572,140.31,140.3,19.21829514]
[1740584555873,1.0,140.31,140.3,20.71436949]
[1740584556194,1.063,140.34,140.33,39.21829514]
[1740584556490,1.74015572,140.34,140.33,219.52648471]
[1740584556863,1.063,140.34,140.33,238.31829514]
[1740584558479,0.063,140.34,140.33,238.31829514]
[1740584558687,1.063,140.34,140.33,238.31829514]
[1740584558994,0.063,140.34,140.33,238.31829514]
[1740584559291,1.063,140.34,140.33,238.31829514]
[1740584560481,0.063,140.34,140.33,238.31829514]
[1740584560986,1.063,140.34,140.33,238.31829514]
[1740584561384,1.74015572,140.34,140.33,219.66864628]
[1740584562060,1.74015572,140.34,140.33,219.52648471]
[1740584562791,1.74015572,140.34,140.33,219.66864628]
[1740584563298,1.74015572,140.34,140.33,219.52648471]
[1740584563593,1.74015572,140.34,140.33,83.04216157]
[1740584563980,0.063,140.34,140.33,245.44429514]
[1740584565267,1.063,140.34,140.33,238.31829514]
[1740584565489,0.063,140.34,140.33,245.44429514]
[1740584565989,0.063,140.34,140.33,245.76713942]
[1740584566789,0.063,140.34,140.33,245.44429514]
[1740584566993,0.063,140.34,140.33,245.76713942]
[1740584567388,0.063,140.34,140.33,245.44429514]
[1740584567584,0.063,140.34,140.33,238.17613357]
[1740584567784,1.74015572,140.34,140.33,82.9]
[1740584569401,1.74015572,140.34,140.33,83.46864628]
[1740584569694,0.063,140.34,140.33,238.31829514]
[1740584569875,1.063,140.34,140.33,238.31829514]
[1740584570076,0.063,140.34,140.33,238.31829514]
[1740584570299,0.063,140.34,140.33,219.66864628]
[1740584570300,1.74015572,140.34,140.33,219.66864628]
[1740584570477,1.74015572,140.34,140.33,219.1]
[1740584570892,1.74015572,140.34,140.33,82.9]
[1740584571978,1.67715572,140.29,140.28,214.6999]
[1740584572181,1.67715572,140.29,140.28,78.4999]